[Event "Late-Titled-Tuesday-Blitz-September-12-2023"]
[Site "Chess.com"]
[Date "2023.09.12"]
[Round "2"]
[White "laiciffOneslraCsungaM"]
[Black "rookoco"]
[Result "0-1"]
[WhiteElo "2340"]
[BlackElo "2710"]
[TimeControl "180+1"]
[EndTime "14:17:32 PDT"]
[Termination "rookoco won by checkmate"]

1. d4 {[%clk 0:03:00.9]} 1... Nf6 {[%clk 0:02:58.6]} 2. c4 {[%clk 0:02:59.7]}
2... g6 {[%clk 0:02:59.1]} 3. g3 {[%clk 0:02:54.1]} 3... Bg7 {[%clk 0:02:56.3]}
4. Bg2 {[%clk 0:02:52.7]} 4... O-O {[%clk 0:02:56.9]} 5. Nc3 {[%clk 0:02:49.5]}
5... d6 {[%clk 0:02:55.2]} 6. Nf3 {[%clk 0:02:46.3]} 6... Nbd7 {[%clk
0:02:54.9]} 7. O-O {[%clk 0:02:43.9]} 7... e5 {[%clk 0:02:53.5]} 8. e4 {[%clk
0:02:41.2]} 8... c6 {[%clk 0:02:53.1]} 9. h3 {[%clk 0:02:38.9]} 9... Qa5 {[%clk
0:02:52.1]} 10. Re1 {[%clk 0:02:20.3]} 10... Re8 {[%clk 0:02:50.6]} 11. d5
{[%clk 0:02:20.3]} 11... cxd5 {[%clk 0:02:45.4]} 12. cxd5 {[%clk 0:01:50.2]}
12... b5 {[%clk 0:02:43.4]} 13. Bd2 {[%clk 0:01:28.7]} 13... b4 {[%clk 0:02:42]}
14. Na4 {[%clk 0:01:27.7]} 14... Nc5 {[%clk 0:02:30.8]} 15. Nxc5 {[%clk
0:01:24.9]} 15... Qxc5 {[%clk 0:02:26.6]} 16. Rc1 {[%clk 0:01:20.8]} 16... Qb6
{[%clk 0:02:24.7]} 17. Be3 {[%clk 0:01:10.2]} 17... Qb7 {[%clk 0:02:19]} 18. Nd2
{[%clk 0:01:09.5]} 18... Bd7 {[%clk 0:02:14.1]} 19. Nc4 {[%clk 0:01:08.4]} 19...
Bf8 {[%clk 0:02:12.8]} 20. Bg5 {[%clk 0:00:57.3]} 20... Kg7 {[%clk 0:02:08.7]}
21. Qf3 {[%clk 0:00:53.2]} 21... Ng8 {[%clk 0:02:03.6]} 22. h4 {[%clk
0:00:39.7]} 22... a5 {[%clk 0:01:54.5]} 23. h5 {[%clk 0:00:37.2]} 23... f6
{[%clk 0:01:52.1]} 24. hxg6 {[%clk 0:00:35.4]} 24... hxg6 {[%clk 0:01:50.2]} 25.
Be3 {[%clk 0:00:33.6]} 25... Ra6 {[%clk 0:01:42.6]} 26. a3 {[%clk 0:00:31.3]}
26... Be7 {[%clk 0:01:39.7]} 27. Bf1 {[%clk 0:00:29.5]} 27... Nh6 {[%clk
0:01:38.5]} 28. Bxh6+ {[%clk 0:00:26.8]} 28... Kxh6 {[%clk 0:01:37.5]} 29. Qd3
{[%clk 0:00:21.5]} 29... Ra7 {[%clk 0:01:30.3]} 30. Qe3+ {[%clk 0:00:18.3]}
30... Kg7 {[%clk 0:01:25.8]} 31. Nb6 {[%clk 0:00:19.2]} 31... Bg4 {[%clk
0:01:19.3]} 32. Rc6 {[%clk 0:00:17.5]} 32... f5 {[%clk 0:01:12.6]} 33. f3 {[%clk
0:00:17.4]} 33... Bh5 {[%clk 0:01:09.4]} 34. Rec1 {[%clk 0:00:14.4]} 34... Qb8
{[%clk 0:01:05.2]} 35. Rc8 {[%clk 0:00:12.4]} 35... Rxc8 {[%clk 0:01:04.4]} 36.
Rxc8 {[%clk 0:00:12.2]} 36... Qb7 {[%clk 0:00:59.6]} 37. Rc6 {[%clk 0:00:11.7]}
37... fxe4 {[%clk 0:00:50.4]} 38. g4 {[%clk 0:00:11.4]} 38... Bxg4 {[%clk
0:00:38.5]} 39. fxg4 {[%clk 0:00:11.1]} 39... Bd8 {[%clk 0:00:38.5]} 40. Nc4
{[%clk 0:00:10.5]} 40... Qf7 {[%clk 0:00:37]} 41. Nxd6 {[%clk 0:00:10.4]} 41...
Qd7 {[%clk 0:00:34.2]} 42. Nxe4 {[%clk 0:00:10.5]} 42... Qxg4+ {[%clk
0:00:32.7]} 43. Ng3 {[%clk 0:00:09.8]} 43... Rf7 {[%clk 0:00:32]} 44. Qxe5+
{[%clk 0:00:10]} 44... Kh7 {[%clk 0:00:32.1]} 45. Be2 {[%clk 0:00:10.3]} 45...
Qh4 {[%clk 0:00:27.2]} 46. Rc8 {[%clk 0:00:07.1]} 46... Bb6+ {[%clk 0:00:24.1]}
47. Kg2 {[%clk 0:00:07.2]} 47... Rf2+ {[%clk 0:00:23.9]} 48. Kg1 {[%clk
0:00:06.9]} 48... Qh2# {[%clk 0:00:24.8]} 0-1

[Event "Late-Titled-Tuesday-Blitz-September-12-2023"]
[Site "Chess.com"]
[Date "2023.09.12"]
[Round "2"]
[White "Ali_rastbod"]
[Black "GAO"]
[Result "1-0"]
[WhiteElo "2705"]
[BlackElo "2336"]
[TimeControl "180+1"]
[EndTime "14:17:35 PDT"]
[Termination "Ali_rastbod won on time"]

1. e4 {[%clk 0:02:55.9]} 1... c5 {[%clk 0:02:59.3]} 2. Nf3 {[%clk 0:02:55.5]}
2... Nc6 {[%clk 0:02:59.9]} 3. Bb5 {[%clk 0:02:53]} 3... g6 {[%clk 0:02:59.9]}
4. Bxc6 {[%clk 0:02:52.5]} 4... dxc6 {[%clk 0:02:56.2]} 5. d3 {[%clk 0:02:51.9]}
5... Bg7 {[%clk 0:02:55.7]} 6. h3 {[%clk 0:02:50.8]} 6... Nf6 {[%clk 0:02:55.7]}
7. Be3 {[%clk 0:02:49.3]} 7... b6 {[%clk 0:02:55.5]} 8. Nc3 {[%clk 0:02:48.2]}
8... Nd7 {[%clk 0:02:55.7]} 9. Qd2 {[%clk 0:02:48]} 9... h6 {[%clk 0:02:51.9]}
10. Nh2 {[%clk 0:02:32.7]} 10... e5 {[%clk 0:02:37.3]} 11. O-O {[%clk
0:02:30.4]} 11... Nf8 {[%clk 0:02:36.3]} 12. f4 {[%clk 0:02:29.2]} 12... exf4
{[%clk 0:02:30.5]} 13. Bxf4 {[%clk 0:02:30.1]} 13... Ne6 {[%clk 0:02:30.7]} 14.
Be3 {[%clk 0:02:30.7]} 14... Nd4 {[%clk 0:02:23.4]} 15. Rae1 {[%clk 0:02:23.3]}
15... Be6 {[%clk 0:02:21.5]} 16. e5 {[%clk 0:02:19.4]} 16... Qc7 {[%clk
0:01:33.6]} 17. Bxd4 {[%clk 0:01:27.7]} 17... cxd4 {[%clk 0:01:31.5]} 18. Ne4
{[%clk 0:01:06.3]} 18... Bxe5 {[%clk 0:01:30.8]} 19. Nf3 {[%clk 0:00:57.8]}
19... Bg7 {[%clk 0:01:26.1]} 20. Qb4 {[%clk 0:00:56.4]} 20... c5 {[%clk
0:01:22.1]} 21. Qb5+ {[%clk 0:00:51.9]} 21... Kf8 {[%clk 0:00:57.5]} 22. Qa4
{[%clk 0:00:47.7]} 22... Kg8 {[%clk 0:00:47.3]} 23. b4 {[%clk 0:00:34.4]} 23...
Kh7 {[%clk 0:00:34.2]} 24. bxc5 {[%clk 0:00:32.3]} 24... bxc5 {[%clk 0:00:33.7]}
25. Nfd2 {[%clk 0:00:30.7]} 25... Rhb8 {[%clk 0:00:31.3]} 26. Qa3 {[%clk
0:00:25.4]} 26... Rb4 {[%clk 0:00:28.9]} 27. Nb3 {[%clk 0:00:26]} 27... Rab8
{[%clk 0:00:27]} 28. Nexc5 {[%clk 0:00:22.7]} 28... Bf8 {[%clk 0:00:19.7]} 29.
Nxe6 {[%clk 0:00:20.7]} 29... fxe6 {[%clk 0:00:20.6]} 30. Rxf8 {[%clk
0:00:20.6]} 30... Qc3 {[%clk 0:00:11.2]} 31. Ref1 {[%clk 0:00:15.8]} 31... Rxf8
{[%clk 0:00:08.2]} 32. Rxf8 {[%clk 0:00:16.7]} 32... Qe1+ {[%clk 0:00:08.2]} 33.
Rf1 {[%clk 0:00:15.9]} 33... Qe3+ {[%clk 0:00:08.1]} 34. Kh1 {[%clk 0:00:16.5]}
34... Rb7 {[%clk 0:00:07.3]} 35. Qf8 {[%clk 0:00:16.1]} 35... Rg7 {[%clk
0:00:05.8]} 36. Rf7 {[%clk 0:00:16.3]} 36... Qe1+ {[%clk 0:00:04.9]} 37. Rf1
{[%clk 0:00:13.9]} 37... Qe3 {[%clk 0:00:04.3]} 38. Nc5 {[%clk 0:00:13.8]} 38...
h5 {[%clk 0:00:02.2]} 39. Ne4 {[%clk 0:00:14.1]} 1-0

[Event "Late-Titled-Tuesday-Blitz-September-12-2023"]
[Site "Chess.com"]
[Date "2023.09.12"]
[Round "2"]
[White "thedjoker98"]
[Black "Jenia84"]
[Result "1-0"]
[WhiteElo "2611"]
[BlackElo "2361"]
[TimeControl "180+1"]
[EndTime "14:17:36 PDT"]
[Termination "thedjoker98 won by resignation"]

1. d4 {[%clk 0:02:59.7]} 1... Nf6 {[%clk 0:02:59.8]} 2. c4 {[%clk 0:03:00.2]}
2... e6 {[%clk 0:03:00.4]} 3. Nc3 {[%clk 0:03:00.6]} 3... Bb4 {[%clk 0:02:59.8]}
4. g3 {[%clk 0:03:01.1]} 4... O-O {[%clk 0:02:58.9]} 5. Bg2 {[%clk 0:03:01.6]}
5... d5 {[%clk 0:02:59]} 6. Nf3 {[%clk 0:03:02.1]} 6... b6 {[%clk 0:02:58.5]} 7.
O-O {[%clk 0:03:02.1]} 7... Ba6 {[%clk 0:02:57.1]} 8. cxd5 {[%clk 0:02:56.9]}
8... exd5 {[%clk 0:02:56.8]} 9. Bg5 {[%clk 0:02:54.4]} 9... Bxc3 {[%clk
0:02:53.8]} 10. bxc3 {[%clk 0:02:54.1]} 10... Nbd7 {[%clk 0:02:54]} 11. Ne5
{[%clk 0:02:52.5]} 11... h6 {[%clk 0:02:34.1]} 12. Nxd7 {[%clk 0:02:51.9]} 12...
Qxd7 {[%clk 0:02:29.6]} 13. Bxf6 {[%clk 0:02:51.8]} 13... gxf6 {[%clk
0:02:29.6]} 14. e4 {[%clk 0:02:48.2]} 14... Bxf1 {[%clk 0:02:26.8]} 15. Kxf1
{[%clk 0:02:44.9]} 15... Rfe8 {[%clk 0:02:22.9]} 16. exd5 {[%clk 0:02:20.8]}
16... Qf5 {[%clk 0:02:05.7]} 17. c4 {[%clk 0:02:16.3]} 17... Re7 {[%clk
0:02:04.2]} 18. d6 {[%clk 0:02:12.1]} 18... Re4 {[%clk 0:01:54.4]} 19. Qf3
{[%clk 0:01:55.6]} 19... Qxf3 {[%clk 0:01:37.8]} 20. Bxf3 {[%clk 0:01:56.5]}
20... f5 {[%clk 0:01:34.1]} 21. Bxe4 {[%clk 0:01:56.2]} 21... fxe4 {[%clk
0:01:34.2]} 22. dxc7 {[%clk 0:01:56.2]} 22... Rc8 {[%clk 0:01:33.9]} 23. Rc1
{[%clk 0:01:52.5]} 23... Rxc7 {[%clk 0:01:33.6]} 24. Ke2 {[%clk 0:01:53.4]}
24... f5 {[%clk 0:01:32.1]} 25. Ke3 {[%clk 0:01:53.4]} 25... Kf7 {[%clk
0:01:32.3]} 26. d5 {[%clk 0:01:53.4]} 26... Kf6 {[%clk 0:01:30.5]} 27. Kd4
{[%clk 0:01:52.7]} 27... Rc5 {[%clk 0:01:30.4]} 28. h4 {[%clk 0:01:36.2]} 28...
h5 {[%clk 0:01:29.4]} 29. a3 {[%clk 0:01:27.3]} 29... Ra5 {[%clk 0:01:23.4]} 30.
c5 {[%clk 0:01:28.2]} 30... Ra4+ {[%clk 0:01:03.7]} 31. Rc4 {[%clk 0:01:26.8]}
31... bxc5+ {[%clk 0:01:02.1]} 32. Kxc5 {[%clk 0:01:26.8]} 32... Rxa3 {[%clk
0:01:02.3]} 33. Kc6 {[%clk 0:01:18]} 33... Rd3 {[%clk 0:00:56.6]} 34. Rc5 {[%clk
0:01:02.6]} 34... Rd2 {[%clk 0:00:47.7]} 35. Kc7 {[%clk 0:00:59.1]} 35... Rxf2
{[%clk 0:00:41.1]} 36. d6 {[%clk 0:00:58.9]} 36... e3 {[%clk 0:00:35]} 37. d7
{[%clk 0:00:40.8]} 37... Rd2 {[%clk 0:00:31.8]} 38. d8=Q+ {[%clk 0:00:39.4]}
38... Rxd8 {[%clk 0:00:31.2]} 39. Kxd8 {[%clk 0:00:40.3]} 39... e2 {[%clk
0:00:18.5]} 40. Rc1 {[%clk 0:00:39.7]} 40... f4 {[%clk 0:00:18.7]} 41. gxf4
{[%clk 0:00:38.1]} 41... Kf5 {[%clk 0:00:19.6]} 42. Re1 {[%clk 0:00:37.4]} 42...
Kxf4 {[%clk 0:00:19.1]} 43. Rxe2 {[%clk 0:00:37.6]} 43... a5 {[%clk 0:00:18.3]}
44. Ke7 {[%clk 0:00:35.4]} 44... a4 {[%clk 0:00:17.6]} 45. Kd6 {[%clk
0:00:31.4]} 45... Kg3 {[%clk 0:00:15.8]} 46. Ke5 {[%clk 0:00:27.1]} 46... a3
{[%clk 0:00:15.5]} 47. Ke4 {[%clk 0:00:24.8]} 47... Kxh4 {[%clk 0:00:14.6]} 48.
Kf3 {[%clk 0:00:24.9]} 48... Kg5 {[%clk 0:00:14.8]} 49. Ra2 {[%clk 0:00:24.2]}
1-0

[Event "Late-Titled-Tuesday-Blitz-September-12-2023"]
[Site "Chess.com"]
[Date "2023.09.12"]
[Round "2"]
[White "Mindhunter08"]
[Black "PassedPawnMustPushed"]
[Result "1-0"]
[WhiteElo "2450"]
[BlackElo "2131"]
[TimeControl "180+1"]
[EndTime "14:17:38 PDT"]
[Termination "Mindhunter08 won on time"]

1. e4 {[%clk 0:02:55]} 1... Nf6 {[%clk 0:03:00.9]} 2. e5 {[%clk 0:02:55.2]} 2...
Ng8 {[%clk 0:03:00.7]} 3. Nf3 {[%clk 0:02:52]} 3... d6 {[%clk 0:03:00.7]} 4. d4
{[%clk 0:02:51.7]} 4... Bg4 {[%clk 0:03:00]} 5. Bc4 {[%clk 0:02:49.3]} 5... d5
{[%clk 0:02:59.8]} 6. Be2 {[%clk 0:02:43.2]} 6... e6 {[%clk 0:02:59.7]} 7. h3
{[%clk 0:02:38.9]} 7... Bxf3 {[%clk 0:02:59.2]} 8. Bxf3 {[%clk 0:02:39.8]} 8...
c5 {[%clk 0:02:59]} 9. c3 {[%clk 0:02:38.7]} 9... Nc6 {[%clk 0:02:58.6]} 10. Be3
{[%clk 0:02:27.3]} 10... Nge7 {[%clk 0:02:49.8]} 11. g4 {[%clk 0:02:22.6]} 11...
Ng6 {[%clk 0:02:41.3]} 12. O-O {[%clk 0:02:18.2]} 12... h5 {[%clk 0:02:16.9]}
13. gxh5 {[%clk 0:02:01.4]} 13... Nh4 {[%clk 0:02:16]} 14. Bg4 {[%clk
0:01:51.3]} 14... f5 {[%clk 0:01:56.3]} 15. exf6 {[%clk 0:01:50.3]} 15... Qxf6
{[%clk 0:01:55.8]} 16. Nd2 {[%clk 0:01:42.1]} 16... Bd6 {[%clk 0:01:45]} 17. Nf3
{[%clk 0:01:37.8]} 17... Kd7 {[%clk 0:01:14.1]} 18. Nxh4 {[%clk 0:01:24]} 18...
Qxh4 {[%clk 0:01:13.1]} 19. Qf3 {[%clk 0:01:24.4]} 19... Raf8 {[%clk 0:01:10.3]}
20. Qxd5 {[%clk 0:01:19.5]} 20... Qxg4+ {[%clk 0:01:01.9]} 21. hxg4 {[%clk
0:01:19.7]} 21... exd5 {[%clk 0:01:01.6]} 22. dxc5 {[%clk 0:01:20.4]} 22... Bf4
{[%clk 0:00:53.4]} 23. Rad1 {[%clk 0:01:19.3]} 23... Bxe3 {[%clk 0:00:36.8]} 24.
Rxd5+ {[%clk 0:01:18.4]} 24... Ke6 {[%clk 0:00:33.1]} 25. Rd6+ {[%clk 0:01:19]}
25... Ke5 {[%clk 0:00:33.3]} 26. fxe3 {[%clk 0:01:19.1]} 26... Rxf1+ {[%clk
0:00:31.2]} 27. Kxf1 {[%clk 0:01:19.6]} 27... Rf8+ {[%clk 0:00:31]} 28. Ke2
{[%clk 0:01:19.5]} 28... Rf7 {[%clk 0:00:25.3]} 29. b4 {[%clk 0:01:14.9]} 29...
a6 {[%clk 0:00:23.9]} 30. a4 {[%clk 0:01:14.3]} 30... Re7 {[%clk 0:00:16.1]} 31.
Rg6 {[%clk 0:01:08.4]} 31... Kd5 {[%clk 0:00:14.3]} 32. g5 {[%clk 0:00:55.3]}
32... Kc4 {[%clk 0:00:14]} 33. h6 {[%clk 0:00:53.2]} 33... gxh6 {[%clk 0:00:14]}
34. gxh6 {[%clk 0:00:54.1]} 34... Rh7 {[%clk 0:00:13.7]} 35. Kd2 {[%clk
0:00:45.1]} 35... Rd7+ {[%clk 0:00:11.6]} 36. Rd6 {[%clk 0:00:45.4]} 36... Rh7
{[%clk 0:00:10.8]} 37. e4 {[%clk 0:00:40.4]} 37... Ne5 {[%clk 0:00:10.6]} 38.
Re6 {[%clk 0:00:36.3]} 38... Nf3+ {[%clk 0:00:09.9]} 39. Ke3 {[%clk 0:00:35.7]}
39... Ng5 {[%clk 0:00:10.5]} 40. Rg6 {[%clk 0:00:33.9]} 40... Nf7 {[%clk
0:00:10.5]} 41. Rg7 {[%clk 0:00:34.5]} 41... Rxh6 {[%clk 0:00:10.3]} 42. Rxf7
{[%clk 0:00:34.7]} 42... Rh3+ {[%clk 0:00:11]} 43. Kf4 {[%clk 0:00:31]} 43...
Rh4+ {[%clk 0:00:10.9]} 44. Ke5 {[%clk 0:00:30.6]} 44... Rh5+ {[%clk 0:00:10.9]}
45. Kd6 {[%clk 0:00:30.8]} 45... Rh6+ {[%clk 0:00:11]} 46. Kc7 {[%clk
0:00:29.3]} 46... Kxc3 {[%clk 0:00:11.2]} 47. Kxb7 {[%clk 0:00:29.8]} 47... Kxb4
{[%clk 0:00:11.9]} 48. c6 {[%clk 0:00:30.5]} 48... Kxa4 {[%clk 0:00:11.6]} 49.
c7 {[%clk 0:00:31.1]} 49... Kb5 {[%clk 0:00:11.2]} 50. c8=Q {[%clk 0:00:30.1]}
50... Rb6+ {[%clk 0:00:12.1]} 51. Ka7 {[%clk 0:00:30]} 1-0

[Event "Late-Titled-Tuesday-Blitz-September-12-2023"]
[Site "Chess.com"]
[Date "2023.09.12"]
[Round "2"]
[White "Nor1lsk"]
[Black "andrzej"]
[Result "1-0"]
[WhiteElo "2754"]
[BlackElo "2411"]
[TimeControl "180+1"]
[EndTime "14:17:40 PDT"]
[Termination "Nor1lsk won by checkmate"]

1. e4 {[%clk 0:03:00.9]} 1... e5 {[%clk 0:02:53.8]} 2. Nf3 {[%clk 0:03:00.4]}
2... Nf6 {[%clk 0:02:50]} 3. Nc3 {[%clk 0:03:00]} 3... Bb4 {[%clk 0:02:49.6]} 4.
Bc4 {[%clk 0:02:59.7]} 4... Bxc3 {[%clk 0:02:42.9]} 5. dxc3 {[%clk 0:02:59.6]}
5... d6 {[%clk 0:02:43.1]} 6. Qe2 {[%clk 0:02:57.7]} 6... h6 {[%clk 0:02:39.1]}
7. h3 {[%clk 0:02:57.6]} 7... Nbd7 {[%clk 0:02:33.5]} 8. Bd2 {[%clk 0:02:57.3]}
8... Nc5 {[%clk 0:02:28.8]} 9. Bd3 {[%clk 0:02:57.2]} 9... Be6 {[%clk
0:02:26.7]} 10. O-O {[%clk 0:02:50.7]} 10... a5 {[%clk 0:02:23.6]} 11. b3 {[%clk
0:02:49.3]} 11... O-O {[%clk 0:02:22.5]} 12. c4 {[%clk 0:02:49.4]} 12... Nh7
{[%clk 0:02:10.3]} 13. c3 {[%clk 0:02:46.4]} 13... Qf6 {[%clk 0:02:06.1]} 14.
Bc2 {[%clk 0:02:44.8]} 14... Bd7 {[%clk 0:02:04.8]} 15. Kh1 {[%clk 0:02:41.6]}
15... Ne6 {[%clk 0:02:04.6]} 16. g3 {[%clk 0:02:33]} 16... Nhg5 {[%clk
0:01:57.8]} 17. Nxg5 {[%clk 0:02:32.8]} 17... hxg5 {[%clk 0:01:57.8]} 18. Kg2
{[%clk 0:02:27.8]} 18... g6 {[%clk 0:01:57.5]} 19. Rad1 {[%clk 0:02:20.2]} 19...
Kg7 {[%clk 0:01:56.4]} 20. Be3 {[%clk 0:02:19.4]} 20... Rh8 {[%clk 0:01:54.8]}
21. Rh1 {[%clk 0:02:17.5]} 21... Rh7 {[%clk 0:01:31]} 22. c5 {[%clk 0:02:04.6]}
22... Rah8 {[%clk 0:01:29.5]} 23. cxd6 {[%clk 0:02:01.1]} 23... cxd6 {[%clk
0:01:26.8]} 24. g4 {[%clk 0:01:43.7]} 24... Rh4 {[%clk 0:01:02.4]} 25. f3 {[%clk
0:01:37.1]} 25... Nf4+ {[%clk 0:00:55.1]} 26. Bxf4 {[%clk 0:01:36.2]} 26... gxf4
{[%clk 0:00:52.4]} 27. Qd2 {[%clk 0:01:26.9]} 27... Rc8 {[%clk 0:00:33]} 28. c4
{[%clk 0:01:24]} 28... Rc6 {[%clk 0:00:31.6]} 29. Qf2 {[%clk 0:01:15.6]} 29...
g5 {[%clk 0:00:30.4]} 30. Qa7 {[%clk 0:01:12.1]} 30... Qd8 {[%clk 0:00:15]} 31.
Qxb7 {[%clk 0:01:07.1]} 31... Rc7 {[%clk 0:00:13.1]} 32. Qb6 {[%clk 0:01:01.2]}
32... Qc8 {[%clk 0:00:08]} 33. Qxd6 {[%clk 0:00:53.2]} 33... f6 {[%clk
0:00:06.6]} 34. Qe7+ {[%clk 0:00:49]} 34... Kg6 {[%clk 0:00:07.1]} 35. Rd6
{[%clk 0:00:48.6]} 35... Qh8 {[%clk 0:00:02.8]} 36. Rxd7 {[%clk 0:00:47.7]}
36... Rxd7 {[%clk 0:00:02.8]} 37. Qxd7 {[%clk 0:00:47.6]} 37... Qb8 {[%clk
0:00:03]} 38. Rd1 {[%clk 0:00:43.8]} 38... Qb6 {[%clk 0:00:02.5]} 39. Qe8+
{[%clk 0:00:37.4]} 39... Kh6 {[%clk 0:00:02.9]} 40. Qf8+ {[%clk 0:00:34.2]}
40... Kg6 {[%clk 0:00:02.6]} 41. Rd6 {[%clk 0:00:33]} 41... Qe3 {[%clk
0:00:01.8]} 42. Qxf6+ {[%clk 0:00:30]} 42... Kh7 {[%clk 0:00:02.3]} 43. Rd7+
{[%clk 0:00:30.2]} 43... Kg8 {[%clk 0:00:02.4]} 44. Qg7# {[%clk 0:00:30.4]} 1-0

[Event "Late-Titled-Tuesday-Blitz-September-12-2023"]
[Site "Chess.com"]
[Date "2023.09.12"]
[Round "2"]
[White "Pingah9"]
[Black "Garmendiarov"]
[Result "0-1"]
[WhiteElo "2548"]
[BlackElo "2351"]
[TimeControl "180+1"]
[EndTime "14:17:48 PDT"]
[Termination "Garmendiarov won by resignation"]

1. e4 {[%clk 0:03:00.9]} 1... c5 {[%clk 0:03:00]} 2. Nc3 {[%clk 0:03:00.4]} 2...
d6 {[%clk 0:02:59.9]} 3. Nge2 {[%clk 0:02:59.7]} 3... Nf6 {[%clk 0:02:59.2]} 4.
d4 {[%clk 0:02:59.9]} 4... cxd4 {[%clk 0:03:00.1]} 5. Nxd4 {[%clk 0:03:00.3]}
5... a6 {[%clk 0:03:00.8]} 6. Bg5 {[%clk 0:03:00.5]} 6... e6 {[%clk 0:03:00.9]}
7. f4 {[%clk 0:02:59.4]} 7... Be7 {[%clk 0:03:01.4]} 8. Qf3 {[%clk 0:02:59.1]}
8... Qc7 {[%clk 0:03:02.1]} 9. O-O-O {[%clk 0:02:59.2]} 9... Nbd7 {[%clk
0:03:02.6]} 10. g4 {[%clk 0:02:59.2]} 10... h6 {[%clk 0:03:02.7]} 11. Bxf6
{[%clk 0:02:57.6]} 11... Bxf6 {[%clk 0:03:03.6]} 12. Bg2 {[%clk 0:02:53.6]}
12... Nb6 {[%clk 0:03:00.3]} 13. h4 {[%clk 0:02:49.2]} 13... Bd7 {[%clk
0:02:58]} 14. g5 {[%clk 0:02:46.2]} 14... Be7 {[%clk 0:02:38.3]} 15. g6 {[%clk
0:02:19.2]} 15... fxg6 {[%clk 0:02:37.9]} 16. Bh3 {[%clk 0:02:19.6]} 16... O-O-O
{[%clk 0:02:33]} 17. Nxe6 {[%clk 0:02:13.6]} 17... Bxe6 {[%clk 0:02:32.2]} 18.
Bxe6+ {[%clk 0:02:14.5]} 18... Kb8 {[%clk 0:02:32.7]} 19. Qg3 {[%clk 0:02:06]}
19... Bf6 {[%clk 0:02:29.7]} 20. Rd3 {[%clk 0:02:04.2]} 20... g5 {[%clk
0:02:12.4]} 21. hxg5 {[%clk 0:02:00.1]} 21... hxg5 {[%clk 0:02:12.6]} 22. Rhd1
{[%clk 0:01:56.2]} 22... gxf4 {[%clk 0:02:07.5]} 23. Qxf4 {[%clk 0:01:57.1]}
23... Be5 {[%clk 0:02:04.8]} 24. Qg4 {[%clk 0:01:51.2]} 24... Rh2 {[%clk
0:01:59.3]} 25. Kb1 {[%clk 0:01:46.8]} 25... Rf8 {[%clk 0:01:55.1]} 26. Bb3
{[%clk 0:01:39.7]} 26... Rff2 {[%clk 0:01:50.7]} 27. a4 {[%clk 0:01:34.2]} 27...
Nc4 {[%clk 0:01:32.7]} 28. Qe6 {[%clk 0:01:30.6]} 28... Nxb2 {[%clk 0:01:26]}
29. Kxb2 {[%clk 0:01:23.9]} 29... Qb6 {[%clk 0:01:19.9]} 30. Qg8+ {[%clk
0:00:27.9]} 30... Ka7 {[%clk 0:01:18.6]} 31. Ka1 {[%clk 0:00:15.4]} 31... Rxc2
{[%clk 0:01:11]} 32. Bxc2 {[%clk 0:00:13.3]} 32... Rxc2 {[%clk 0:01:11.9]} 33.
Rb1 {[%clk 0:00:13.1]} 33... Qc5 {[%clk 0:01:02.4]} 34. Qb3 {[%clk 0:00:11.2]}
34... Bxc3+ {[%clk 0:00:48]} 35. Rxc3 {[%clk 0:00:11.4]} 35... Qxc3+ {[%clk
0:00:48.3]} 36. Qxc3 {[%clk 0:00:11.6]} 36... Rxc3 {[%clk 0:00:49.2]} 37. Rg1
{[%clk 0:00:11.3]} 37... Ra3+ {[%clk 0:00:47.4]} 38. Kb2 {[%clk 0:00:11]} 38...
Rxa4 {[%clk 0:00:48.3]} 39. Rxg7 {[%clk 0:00:11.1]} 39... Rxe4 {[%clk
0:00:48.5]} 40. Rd7 {[%clk 0:00:11.9]} 40... Rd4 {[%clk 0:00:43.2]} 41. Kc3
{[%clk 0:00:12.3]} 41... Rd1 {[%clk 0:00:43.2]} 42. Kc2 {[%clk 0:00:12.7]} 42...
Rd5 {[%clk 0:00:43.3]} 43. Kc3 {[%clk 0:00:13]} 43... Kb6 {[%clk 0:00:43.9]} 44.
Kc4 {[%clk 0:00:13.4]} 44... Kc6 {[%clk 0:00:44.1]} 45. Rd8 {[%clk 0:00:11.7]}
45... Rc5+ {[%clk 0:00:43.8]} 46. Kd4 {[%clk 0:00:12.2]} 46... b5 {[%clk
0:00:42.2]} 47. Ra8 {[%clk 0:00:11.8]} 47... Kb7 {[%clk 0:00:41.7]} 48. Rd8
{[%clk 0:00:12.1]} 48... Kc7 {[%clk 0:00:39.8]} 49. Ra8 {[%clk 0:00:11.8]} 49...
Rc6 {[%clk 0:00:39.7]} 50. Kd5 {[%clk 0:00:12.2]} 50... Rc5+ {[%clk 0:00:36.7]}
51. Kd4 {[%clk 0:00:12.2]} 51... Kb6 {[%clk 0:00:36.3]} 52. Rb8+ {[%clk
0:00:12]} 52... Ka5 {[%clk 0:00:36.5]} 53. Rd8 {[%clk 0:00:11.7]} 53... Rc1
{[%clk 0:00:30.6]} 54. Ke3 {[%clk 0:00:10.7]} 54... b4 {[%clk 0:00:28.9]} 55.
Kd2 {[%clk 0:00:10.9]} 55... Rc6 {[%clk 0:00:27.7]} 56. Rb8 {[%clk 0:00:10.9]}
56... Ka4 {[%clk 0:00:27.7]} 0-1